bitfinex/quotes_SOLUSD_20251127
["timestamp","ask_amount","ask_price","bid_price","bid_amount"]
[1764247807731,0.72,141.39,141.37,2.15089805]
[1764247808830,0.72,141.39,141.35,19.83749161]
[1764247809034,2.15089805,141.38,141.36,16.308864]
[1764247809250,2.15089805,141.38,141.34,10.96084297]
[1764247809453,0.72,141.37,141.35,7.07453533]
[1764247812462,0.66,141.38,141.35,7.07453533]
[1764247812769,0.66,141.38,141.35,9.22543338]
[1764247813961,0.66,141.38,141.35,7.07453533]
[1764247814141,0.66,141.38,141.35,9.22543338]
[1764247814864,7.73317607,141.38,141.34,7.07493317]
[1764247815066,7.73317607,141.38,141.35,2.15089805]
[1764247815260,0.66,141.37,141.35,2.15089805]
[1764247816953,0.66,141.37,141.36,2.15089805]
[1764247818559,0.66,141.37,141.35,7.07427258]
[1764247818967,0.66,141.37,141.36,2.15089805]
[1764247822772,0.66,141.37,141.35,9.22510515]
[1764247824248,9.22324297,141.4,141.36,2.15089805]
[1764247824448,0.66,141.38,141.36,2.15089805]
[1764247826452,0.66,141.38,141.35,9.22510515]
[1764247828274,0.66,141.38,141.36,9.2249378]
[1764247829569,0.66,141.38,141.37,2.15089805]
[1764247830354,0.66,141.38,141.37,9.2245346]
[1764247830754,0.66,141.38,141.33,7.07556719]
[1764247830957,9.88414234,141.38,141.34,2.15089805]
[1764247831363,0.66,141.37,141.34,2.15089805]
[1764247831765,0.66,141.37,141.35,2.15089805]
[1764247832565,0.66,141.37,141.35,9.22542324]
[1764247834664,0.66,141.37,141.34,9.22603601]
[1764247841870,0.66,141.37,141.34,7.07513796]
[1764247842065,0.66,141.37,141.34,9.22603601]
[1764247844288,0.69,141.39,141.36,2.15089805]
[1764247845174,0.69,141.39,141.35,2.15089805]
[1764247846997,7.76268058,141.39,141.35,9.22508058]
[1764247847491,7.76268058,141.39,141.34,9.22578803]
[1764247847695,0.69,141.38,141.34,9.22578803]
[1764247848694,3.72504007,141.38,141.34,7.07488998]
[1764247848897,3.72504007,141.38,141.33,9.22631895]
[1764247849085,7.76363655,141.37,141.33,9.22631895]
[1764247849591,0.69,141.36,141.33,9.22631895]
[1764247850590,0.69,141.36,141.33,10.44114541]
[1764247851275,11.1299005,141.36,141.33,7.0754209]
[1764247851786,0.69,141.35,141.33,7.0754209]
[1764247852890,0.69,141.35,141.33,10.44114541]
[1764247854901,0.69,141.35,141.33,7.0754209]
[1764247855201,0.69,141.35,141.33,10.44114541]
[1764247860206,0.69,141.35,141.31,3.69480856]
[1764247860396,3.36572451,141.33,141.28,68.14125205]
[1764247860601,3.36572451,141.33,141.28,71.26125205]
[1764247860897,0.69,141.32,141.28,67.89552754]
[1764247861098,4.05572451,141.32,141.28,78.33931327]
[1764247861322,4.05572451,141.32,141.28,64.77552754]
[1764247861524,0.69,141.31,141.28,64.77552754]
[1764247861689,0.69,141.31,141.28,71.85366039]
[1764247862490,21.25624402,141.34,141.29,3.36572451]
[1764247862491,28.33153159,141.34,141.29,3.36572451]
[1764247862687,0.69,141.32,141.3,3.36572451]
[1764247862904,0.69,141.35,141.31,3.36572451]
[1764247863222,3.12,141.37,141.31,8.80994492]
[1764247863388,0.69,141.34,141.33,3.36572451]
[1764247864809,0.69,141.34,141.32,10.44144084]
[1764247866309,0.69,141.34,141.33,3.36572451]
[1764247866485,0.69,141.36,141.33,3.36572451]
[1764247866688,0.69,141.36,141.32,10.19571633]
[1764247866886,0.69,141.36,141.33,3.36572451]
[1764247867488,0.69,141.36,141.33,10.44102074]
[1764247869316,0.69,141.36,141.33,7.07529623]
[1764247869512,0.69,141.36,141.33,10.44102074]
[1764247871410,11.12988446,141.36,141.32,10.19610863]
[1764247871714,11.12988446,141.36,141.32,13.56183314]
[1764247871911,0.69,141.35,141.33,3.36572451]
[1764247873314,0.69,141.35,141.33,10.44132123]
[1764247874010,0.69,141.35,141.32,13.56170078]
[1764247874419,0.69,141.35,141.32,10.44170078]
[1764247875221,0.69,141.35,141.32,7.07597627]
[1764247875392,0.69,141.35,141.32,10.44170078]
[1764247877295,0.69,141.35,141.32,7.07597627]
[1764247878500,0.69,141.35,141.32,10.44170078]
[1764247879424,0.69,141.35,141.32,7.07597627]
[1764247880502,0.69,141.35,141.29,23.38626772]
[1764247880503,3.36572451,141.33,141.29,23.38626772]
[1764247880707,7.76478685,141.35,141.29,23.38626772]
[1764247880708,3.36572451,141.32,141.29,23.38626772]
[1764247881018,3.36572451,141.33,141.29,7.07740372]
[1764247881400,0.69,141.32,141.29,7.07740372]
[1764247882223,3.36572451,141.3,141.28,64.77552754]
[1764247882425,7.76616185,141.32,141.28,64.77552754]
[1764247882426,3.36572451,141.29,141.28,64.77552754]
[1764247882636,25.31498114,141.31,141.28,64.77552754]
[1764247882926,0.69,141.33,141.3,3.36572451]
[1764247883102,0.69,141.33,141.32,3.36572451]
[1764247883495,0.69,141.33,141.31,3.36572451]
[1764247884629,0.69,141.33,141.3,7.07685528]
[1764247884828,0.69,141.33,141.32,3.36572451]
[1764247885358,0.69,141.33,141.3,7.07685528]
[1764247885552,0.69,141.33,141.32,3.36572451]
[1764247888729,0.69,141.33,141.32,10.44186376]
[1764247889521,0.69,141.35,141.32,10.44186376]
[1764247890433,0.69,141.35,141.33,3.36572451]
[1764247890632,0.69,141.35,141.32,7.07613925]
[1764247890830,0.69,141.35,141.32,10.44186376]
[1764247891534,11.13046044,141.35,141.31,10.44221723]
[1764247891737,11.13046044,141.35,141.31,7.07649272]
[1764247891939,0.69,141.34,141.31,7.07649272]
[1764247892913,4.05572451,141.34,141.31,7.07649272]
[1764247893930,0.69,141.34,141.31,7.07649272]
[1764247894832,0.69,141.34,141.31,3.36572451]
[1764247895609,7.76529202,141.34,141.3,7.07714083]
[1764247895817,12.01540877,141.34,141.3,7.07714083]
[1764247896028,0.69,141.33,141.3,7.07714083]
[1764247896825,0.69,141.33,141.3,10.44286534]
[1764247898914,0.69,141.33,141.31,3.36572451]
[1764247900111,0.69,141.33,141.3,7.07714083]
[1764247900310,0.69,141.33,141.31,3.36572451]
[1764247900512,0.69,141.33,141.3,10.44286534]
[1764247900734,0.69,141.33,141.3,7.07714083]
[1764247902036,11.13157056,141.33,141.28,64.77552754]
[1764247902217,11.13157056,141.33,141.28,68.14125205]
[1764247902540,0.67,141.32,141.28,68.14125205]
[1764247903317,0.67,141.32,141.28,75.21928547]
[1764247903843,11.11200174,141.32,141.28,71.85356096]
[1764247904046,4.03572451,141.32,141.28,75.21928547]
[1764247904336,0.67,141.31,141.29,3.36572451]
[1764247904535,0.67,141.31,141.3,3.36572451]
[1764247905517,0.67,141.31,141.3,10.44286534]
[1764247906430,0.67,141.31,141.3,7.07714083]
[1764247906749,0.67,141.31,141.3,10.44286534]
[1764247909928,0.67,141.31,141.3,7.07714083]
[1764247910216,0.67,141.31,141.3,10.44286534]
[1764247910635,0.67,141.31,141.3,9.2322988]
[1764247910950,0.67,141.31,141.28,64.77552754]
[1764247911151,0.67,141.31,141.28,74.0088209]
[1764247911431,7.74664036,141.31,141.28,64.77552754]
[1764247911645,9.90179833,141.31,141.28,64.77552754]
[1764247911831,2.82515797,141.3,141.28,64.77552754]
[1764247912036,0.67,141.3,141.28,64.77552754]
[1764247912440,0.67,141.29,141.28,64.77552754]
[1764247913254,0.67,141.29,141.28,66.93068551]
[1764247913426,0.67,141.3,141.28,66.93068551]
[1764247915144,0.67,141.3,141.28,64.77552754]
[1764247916323,2.15515797,141.29,141.28,64.77552754]
[1764247916620,0.67,141.3,141.28,64.77552754]
[1764247916825,17.6860095,141.36,141.29,2.15515797]
[1764247917055,0.67,141.33,141.31,2.15515797]
[1764247917230,0.67,141.33,141.28,92.66897043]
[1764247917638,0.67,141.33,141.3,2.15515797]
[1764247917963,7.74567734,141.33,141.3,2.15515797]
[1764247918267,0.67,141.32,141.29,9.23251016]
[1764247921458,2.82515797,141.32,141.29,7.07735219]
[1764247921771,9.90140186,141.32,141.28,74.97344842]
[1764247922059,0.67,141.31,141.28,74.97344842]
[1764247922223,0.67,141.31,141.28,71.85344842]
[1764247922429,0.67,141.31,141.28,74.00860639]
[1764247923261,0.67,141.31,141.28,71.85344842]
[1764247925629,2.15515797,141.3,141.28,64.77552754]
[1764247925867,2.15515797,141.29,141.28,64.77552754]
[1764247926075,0.67,141.29,141.28,64.77552754]
[1764247927326,7.74764172,141.29,141.28,64.77552754]
[1764247928530,9.90279969,141.29,141.28,64.77552754]
[1764247931868,13.02279969,141.29,141.28,64.77552754]
[1764247932680,13.02279969,141.29,141.28,64.05552754]
[1764247932847,9.90279969,141.29,141.28,64.05552754]
[1764247933039,13.02279969,141.29,141.28,64.05552754]
[1764247933448,9.90279969,141.29,141.28,64.05552754]
[1764247933656,13.02279969,141.29,141.28,64.05552754]
[1764247936554,9.90279969,141.29,141.28,64.05552754]
[1764247936861,13.02279969,141.29,141.28,64.05552754]
[1764247937661,9.90279969,141.29,141.28,64.05552754]
[1764247937969,13.02279969,141.29,141.28,64.05552754]
[1764247938354,7.74764172,141.29,141.28,64.05552754]
[1764247938665,13.02279969,141.29,141.28,64.05552754]
[1764247941469,17.1935066,141.3,141.28,64.05552754]
[1764247941761,3.12,141.32,141.29,0.66]
[1764247942173,5.99515797,141.32,141.29,0.66]
[1764247942347,5.99515797,141.32,141.28,64.71552754]
[1764247942545,5.99515797,141.32,141.29,0.66]
[1764247942753,5.99515797,141.32,141.28,64.05552754]
[1764247942942,5.99515797,141.32,141.29,0.66]
[1764247943545,12.35160441,141.32,141.29,0.66]
[1764247943967,13.07160441,141.32,141.29,0.66]
[1764247944858,13.07160441,141.32,141.28,64.71552754]
[1764247945060,13.07160441,141.32,141.28,64.05552754]
[1764247945243,13.07160441,141.32,141.29,0.66]
[1764247945443,13.07160441,141.32,141.28,64.71552754]
[1764247946252,5.99515797,141.32,141.28,71.13355892]
[1764247946460,13.07136097,141.32,141.29,0.66]
[1764247946641,2.87515797,141.31,141.28,64.05552754]
[1764247946841,2.15515797,141.3,141.28,64.05552754]
[1764247947039,2.87515797,141.3,141.28,64.05552754]
[1764247947767,2.15515797,141.3,141.28,64.05552754]
[1764247948081,3.12,141.3,141.28,64.71552754]
[1764247948851,3.12,141.3,141.28,64.05552754]
[1764247949147,3.84,141.3,141.28,64.05552754]
[1764247949349,3.12,141.3,141.28,64.05552754]
[1764247949552,0.72,141.29,141.28,64.05552754]
[1764247950976,7.79764172,141.29,141.28,64.05552754]
[1764247951569,7.07764172,141.29,141.28,64.05552754]
[1764247951872,3.12,141.29,141.28,64.05552754]
[1764247952884,13.07279969,141.29,141.28,64.05552754]
[1764247961584,10.91764172,141.29,141.28,64.05552754]
[1764247961761,13.07279969,141.29,141.28,64.05552754]
[1764247964178,1.58458,141.31,141.28,64.05552754]
[1764247964377,12.35234224,141.3,141.28,64.05552754]
[1764247964581,13.05234224,141.3,141.28,64.05552754]
[1764247965870,2.15515797,141.29,141.28,64.05552754]
[1764247966071,10.89718427,141.3,141.28,64.05552754]
[1764247972362,2.15515797,141.29,141.28,64.05552754]
[1764247972591,3.36978842,141.29,141.28,64.05552754]
[1764247973587,7.77718427,141.3,141.28,64.05552754]
[1764247973776,6.48978842,141.29,141.28,64.05552754]
[1764247974487,13.56743014,141.29,141.28,64.05552754]
[1764247975381,10.19764172,141.29,141.28,64.05552754]
[1764247975586,13.56743014,141.29,141.28,64.05552754]
[1764247976392,14.26743014,141.29,141.28,64.05552754]
[1764247978884,10.89764172,141.29,141.28,64.05552754]
[1764247979093,14.26743014,141.29,141.28,64.05552754]
[1764247979979,7.07764172,141.29,141.28,64.05552754]
[1764247980167,10.44715775,141.3,141.28,64.05552754]
[1764247980495,3.12,141.29,141.28,64.05552754]
[1764247981076,13.56743014,141.29,141.28,64.05552754]
[1764247981998,6.48978842,141.29,141.28,64.05552754]
[1764247983373,3.36978842,141.29,141.28,64.05552754]
[1764247983593,18.57426782,141.33,141.28,64.74552754]
[1764247983778,13.56628708,141.32,141.29,0.69]
[1764247984092,14.26628708,141.32,141.29,0.69]
[1764247984399,3.36978842,141.31,141.29,0.69]
[1764247984696,3.12,141.3,141.29,0.69]
[1764247987803,6.48978842,141.3,141.28,64.05552754]
[1764247987989,6.48978842,141.3,141.28,64.74552754]
[1764247988599,7.18978842,141.3,141.28,64.05552754]
[1764247988800,3.36978842,141.29,141.28,64.05552754]
[1764247989476,6.48978842,141.3,141.28,64.05552754]
[1764247989678,6.48978842,141.3,141.28,64.74552754]
[1764247990171,3.12,141.3,141.28,64.05552754]
[1764247990482,3.36978842,141.29,141.28,64.05552754]
[1764247991395,3.36978842,141.29,141.28,64.73552754]
[1764247991696,3.12,141.29,141.28,64.05552754]
[1764247994404,6.48978842,141.29,141.28,64.05552754]
[1764247994908,14.25743014,141.29,141.28,64.05552754]
[1764247997199,10.88764172,141.29,141.28,64.05552754]
[1764247997514,14.25743014,141.29,141.28,64.05552754]
[1764247998887,7.07764172,141.29,141.28,64.05552754]
[1764247999088,11.13582904,141.33,141.28,71.81362477]
[1764247999294,3.12,141.32,141.29,0.68]
[1764247999697,0.69,141.31,141.28,64.05552754]
[1764247999889,3.36978842,141.29,141.28,64.05552754]
[1764248000091,3.36978842,141.3,141.28,64.05552754]
[1764248000321,3.12,141.31,141.29,0.68]
[1764248000811,6.48978842,141.31,141.29,0.68]
[1764248001018,13.5665704,141.31,141.29,0.68]
[1764248001315,3.36978842,141.3,141.28,64.05552754]
[1764248001516,4.05978842,141.3,141.28,64.05552754]
[1764248001816,3.36978842,141.3,141.28,64.05552754]
[1764248002020,3.36978842,141.3,141.28,64.73552754]
[1764248002216,3.36978842,141.3,141.28,64.05552754]
[1764248002397,3.36978842,141.29,141.28,64.05552754]
[1764248003218,4.05978842,141.29,141.28,64.05552754]
[1764248003394,7.07755488,141.3,141.28,64.05552754]
[1764248003602,3.12,141.29,141.28,64.05552754]
[1764248004115,6.48978842,141.29,141.28,64.05552754]
[1764248005211,13.56743014,141.29,141.28,64.05552754]
[1764248005702,3.12,141.29,141.28,64.05552754]
[1764248005900,6.48978842,141.29,141.28,64.05552754]
[1764248006327,14.25743014,141.29,141.28,64.05552754]
[1764248006620,15.14213535,141.29,141.28,64.05552754]
[1764248007429,6.48978842,141.29,141.28,64.05552754]
[1764248009325,13.56743014,141.29,141.28,64.05552754]
[1764248010207,7.07730653,141.3,141.28,64.05552754]
[1764248010406,6.48978842,141.29,141.28,64.05552754]
[1764248011220,7.17978842,141.29,141.28,64.05552754]
[1764248011411,8.06449363,141.29,141.28,64.05552754]
[1764248011606,4.69470521,141.29,141.28,64.05552754]
[1764248011811,8.06449363,141.29,141.28,64.05552754]
[1764248012414,15.14213535,141.29,141.28,64.05552754]
[1764248013600,6.48978842,141.29,141.28,64.05552754]
[1764248013996,13.56743014,141.29,141.28,64.05552754]
[1764248014313,10.44743014,141.29,141.28,64.05552754]
[1764248014507,13.56743014,141.29,141.28,64.05552754]
[1764248015027,3.12,141.29,141.28,64.05552754]
[1764248015227,6.48978842,141.29,141.28,64.05552754]
[1764248018505,13.56743014,141.29,141.28,64.05552754]
[1764248019723,14.25743014,141.29,141.28,64.05552754]
[1764248020733,10.88764172,141.29,141.28,64.05552754]
[1764248020918,14.25743014,141.29,141.28,64.05552754]
[1764248027632,23.06737506,141.29,141.28,64.05552754]
[1764248027952,44.33416696,141.29,141.28,64.05552754]
[1764248028317,23.06737506,141.29,141.28,64.05552754]
[1764248029409,11.13743014,141.29,141.28,64.05552754]
[1764248029638,14.25743014,141.29,141.28,64.05552754]
[1764248031524,7.76764172,141.29,141.28,64.05552754]
[1764248031717,14.25743014,141.29,141.28,64.05552754]
[1764248032629,13.04527355,141.29,141.28,64.05552754]
[1764248032823,7.76764172,141.29,141.28,64.05552754]
[1764248033040,13.04527355,141.29,141.28,64.05552754]
[1764248033246,9.92527355,141.29,141.28,64.05552754]
[1764248033420,13.04527355,141.29,141.28,64.05552754]
[1764248033830,9.23527355,141.29,141.28,64.05552754]
[1764248034029,12.35527355,141.29,141.28,64.05552754]
[1764248034427,13.01527355,141.29,141.28,64.05552754]
[1764248035331,12.35527355,141.29,141.28,64.05552754]
[1764248035734,13.01527355,141.29,141.28,64.05552754]
[1764248036237,12.35527355,141.29,141.28,64.05552754]
[1764248036444,9.23527355,141.29,141.28,64.05552754]
[1764248036741,12.35527355,141.29,141.28,64.05552754]
[1764248039853,13.01527355,141.29,141.28,64.05552754]
[1764248040234,7.73764172,141.29,141.28,64.05552754]
[1764248040433,13.01527355,141.29,141.28,64.05552754]
[1764248048167,9.23495301,141.3,141.28,64.77552754]
[1764248048354,5.27763183,141.29,141.28,64.77552754]
[1764248049661,3.12,141.29,141.28,64.77552754]
[1764248050043,7.07732118,141.3,141.28,64.77552754]
[1764248050242,3.12,141.29,141.28,64.77552754]
[1764248052062,3.12,141.29,141.28,64.05552754]
[1764248052255,10.19764172,141.29,141.28,64.05552754]
[1764248052938,7.07764172,141.29,141.28,64.75552754]
[1764248053134,10.19764172,141.29,141.28,64.75552754]
[1764248053335,18.35224109,141.31,141.28,64.75552754]
[1764248053336,7.0773796,141.3,141.28,64.75552754]
[1764248053552,3.12,141.29,141.28,64.05552754]
[1764248054044,3.12,141.29,141.28,64.75552754]
[1764248054346,10.19764172,141.29,141.28,64.75552754]
[1764248055261,10.19764172,141.29,141.28,64.05552754]
[1764248055458,13.05527355,141.29,141.28,64.05552754]
[1764248055753,12.35527355,141.29,141.28,64.05552754]
[1764248058445,13.05527355,141.29,141.28,64.05552754]
[1764248060764,19.70758664,141.29,141.28,28.6049075]
[1764248061148,21.86521847,141.29,141.28,28.6049075]
[1764248061657,13.05527355,141.29,141.28,28.6049075]
[1764248062267,7.77764172,141.29,141.28,28.6049075]
[1764248062472,13.05527355,141.29,141.28,28.6049075]
[1764248062665,9.93527355,141.29,141.28,28.6049075]
[1764248062847,7.07764172,141.29,141.28,28.6049075]
[1764248063055,12.35527355,141.29,141.28,28.6049075]
[1764248063673,10.89764172,141.29,141.28,28.6049075]
[1764248063865,24.0228503,141.29,141.28,27.1649075]
[1764248064067,8.80994492,141.28,141.25,66.6322314]
[1764248064282,2.15763183,141.26,141.25,66.6322314]
[1764248064463,4.31526366,141.26,141.25,66.6322314]
[1764248064789,12.09440849,141.26,141.25,66.6322314]
[1764248065080,13.05677666,141.26,141.25,66.6322314]
[1764248065279,19.70908975,141.26,141.25,22.11401066]
[1764248065577,3.82,141.26,141.25,22.11401066]
[1764248065752,3.12,141.26,141.25,22.11401066]
[1764248065954,3.12,141.26,141.25,22.81401066]
[1764248066148,2.15763183,141.26,141.25,22.11401066]
[1764248066354,5.27763183,141.26,141.25,22.81401066]
[1764248066583,12.35677666,141.26,141.25,22.81401066]
[1764248067083,5.27763183,141.26,141.25,22.81401066]
[1764248069685,21.39223916,141.36,141.25,22.81401066]
[1764248069686,7.07664001,141.31,141.25,22.81401066]
[1764248069867,7.07664001,141.31,141.26,0.7]
[1764248069868,4.0046426,141.3,141.26,0.7]
[1764248070283,2.15763183,141.27,141.26,0.7]
[1764248070477,2.15763183,141.28,141.26,0.7]
[1764248070679,7.96185283,141.3,141.26,0.7]
[1764248070880,7.07721023,141.3,141.26,0.7]
[1764248071184,5.27763183,141.29,141.26,0.7]
[1764248071574,3.12,141.29,141.26,0.7]
[1764248072282,2.15763183,141.29,141.26,0.7]
[1764248072683,7.07816896,141.28,141.26,0.7]
[1764248072982,9.23580079,141.28,141.26,0.7]
[1764248073174,3.12,141.3,141.26,0.7]
[1764248073376,2.15763183,141.28,141.26,0.7]
[1764248073765,2.15763183,141.27,141.26,0.7]
[1764248074184,3.12,141.27,141.25,22.11401066]
[1764248074365,2.15763183,141.26,141.25,22.81401066]
[1764248074561,5.27763183,141.27,141.26,0.7]
[1764248075386,0.8845174,141.32,141.26,0.7]
[1764248075685,0.8845174,141.32,141.27,2.15763183]
[1764248075686,3.12,141.31,141.27,2.15763183]
[1764248075988,3.12,141.31,141.26,84.93677028]
[1764248076174,3.12,141.31,141.27,0.7]
[1764248076969,12.35437488,141.31,141.27,0.7]
[1764248077586,2.15763183,141.3,141.27,0.7]
[1764248077885,2.15763183,141.29,141.27,0.7]
[1764248078086,27.88834307,141.31,141.27,0.7]
[1764248078293,2.15763183,141.29,141.27,0.7]
[1764248078891,9.23534113,141.29,141.27,0.7]
[1764248079891,12.35534113,141.29,141.27,0.7]
[1764248080101,10.1977093,141.29,141.27,0.7]
[1764248080517,3.12,141.29,141.27,0.7]
[1764248080992,10.19771303,141.29,141.27,0.7]
[1764248085080,2.15763183,141.28,141.27,0.66]
[1764248085699,10.19771303,141.29,141.27,0.66]
[1764248085880,10.19771303,141.29,141.26,0.66]
[1764248086081,2.15763183,141.28,141.26,0.66]
[1764248086382,27.89181735,141.29,141.26,0.66]
[1764248086583,2.15763183,141.28,141.26,0.66]
[1764248087093,7.07864373,141.27,141.26,0.66]
[1764248087599,9.23627556,141.27,141.25,22.77401066]
[1764248087807,5.27763183,141.26,141.25,22.77401066]
[1764248088405,5.87763183,141.26,141.25,22.11401066]
[1764248089096,12.95677666,141.26,141.25,22.11401066]
[1764248089983,15.11440849,141.26,141.25,22.11401066]
[1764248090181,50.49581584,141.26,141.23,82.93460925]
[1764248090497,0.6,141.27,141.23,83.59460925]
[1764248090694,17.69584575,141.28,141.24,0.66]
[1764248091003,2.15763183,141.26,141.24,0.66]
[1764248091179,3.12,141.25,141.24,0.66]
[1764248093689,12.35727784,141.25,141.23,82.93460925]
[1764248093885,2.15763183,141.24,141.23,82.93460925]
[1764248094492,10.19964601,141.25,141.23,83.59460925]
[1764248094684,13.57107712,141.25,141.24,0.66]
[1764248094989,13.57107712,141.25,141.23,83.59460925]
[1764248095376,10.45157837,141.24,141.23,83.59460925]
[1764248095993,13.57157837,141.24,141.23,83.59460925]
[1764248096902,33.58344434,141.28,141.23,83.59460925]
[1764248097103,3.37143111,141.25,141.24,0.66]
[1764248097604,3.37143111,141.25,141.23,83.59460925]
[1764248097782,6.49143111,141.24,141.23,83.59460925]
[1764248097982,3.12,141.24,141.23,83.59460925]
[1764248098189,6.49143111,141.24,141.23,83.59460925]
[1764248099404,10.20014726,141.24,141.23,83.59460925]
[1764248099607,13.57157837,141.24,141.23,83.59460925]
[1764248100278,10.20014726,141.24,141.23,83.59460925]
[1764248101203,13.57157837,141.24,141.23,83.59460925]
[1764248101383,13.57157837,141.24,141.23,82.93460925]
[1764248101586,14.17157837,141.24,141.23,82.93460925]
[1764248101800,32.75546289,141.24,141.23,82.93460925]
[1764248101991,32.75546289,141.24,141.18,154.66325939]
[1764248101992,90.9465123,141.24,141.18,154.66325939]
[1764248102199,8.80994492,141.19,141.18,103.46234192]
[1764248102387,8.80994492,141.18,141.17,25.0]
[1764248102581,16.308864,141.18,141.17,25.0]
[1764248102893,41.47310225,141.18,141.17,25.0]
[1764248103202,19.428864,141.18,141.17,25.0]
[1764248103397,35.57339628,141.18,141.17,25.0]
[1764248103707,48.04532984,141.18,141.17,25.0]
[1764248104008,29.88345136,141.18,141.17,25.0]
[1764248104999,10.45458736,141.18,141.17,25.66]
[1764248105204,17.70350216,141.22,141.17,25.66]
[1764248105390,21.27433251,141.22,141.18,0.66]
[1764248105591,3.12,141.21,141.18,0.66]
[1764248105805,6.49143111,141.21,141.18,0.66]
[1764248105991,3.37143111,141.19,141.17,25.0]
[1764248106292,3.37143111,141.18,141.17,25.0]
[1764248106509,3.14,141.18,141.17,25.0]
[1764248106710,6.51143111,141.18,141.17,25.0]
[1764248106889,3.37143111,141.18,141.17,25.0]
[1764248107089,3.37143111,141.18,141.17,25.66]
[1764248107090,6.51143111,141.18,141.17,25.66]
[1764248107306,3.37143111,141.18,141.17,25.66]
[1764248107491,13.59458736,141.18,141.17,25.66]
[1764248107999,13.59419435,141.19,141.17,25.66]
[1764248108202,13.59419435,141.19,141.18,0.66]
[1764248108707,13.59419435,141.19,141.17,25.0]
[1764248108908,3.37143111,141.18,141.17,25.0]
[1764248109107,10.22276324,141.19,141.17,25.0]
[1764248109301,3.37143111,141.18,141.17,25.0]
[1764248109507,10.45458736,141.18,141.17,25.0]
[1764248109704,13.59458736,141.18,141.17,25.0]
[1764248111416,13.59458736,141.18,141.17,25.71]
[1764248111609,7.08315625,141.18,141.17,25.0]
[1764248111791,13.59458736,141.18,141.17,25.0]
[1764248112602,10.22315625,141.18,141.17,25.0]
[1764248112913,10.45458736,141.18,141.17,25.0]
[1764248113121,7.08315625,141.18,141.17,25.71]
[1764248113414,10.22315625,141.18,141.17,25.71]
[1764248113599,3.14,141.18,141.17,25.71]
[1764248113804,10.22315625,141.18,141.17,25.71]
[1764248114206,13.59458736,141.18,141.17,25.71]
[1764248115018,13.59458736,141.18,141.17,25.0]
[1764248118798,10.45458736,141.18,141.17,25.66]
[1764248119005,10.22315625,141.18,141.17,25.66]
[1764248123033,13.59458736,141.18,141.17,25.66]
[1764248123597,18.59110521,141.2,141.17,25.66]
[1764248123598,7.08235697,141.2,141.17,25.66]
[1764248123809,3.14,141.19,141.18,0.66]
[1764248124010,7.08235697,141.2,141.18,0.66]
[1764248124208,3.14,141.19,141.18,0.66]
[1764248124411,3.14,141.2,141.18,0.66]
[1764248124921,3.14,141.2,141.17,24.7679]
[1764248125096,6.51143111,141.2,141.17,24.7679]
[1764248125300,3.37143111,141.19,141.17,24.7679]
[1764248125554,0.88514374,141.22,141.17,24.7679]
[1764248125829,7.38064858,141.23,141.17,24.7679]
[1764248125830,6.51143111,141.21,141.17,24.7679]
[1764248126128,7.08215297,141.2,141.17,24.7679]
[1764248126505,10.22215297,141.2,141.17,24.7679]
[1764248126702,10.22215297,141.2,141.18,0.66]
[1764248127026,7.08215297,141.2,141.18,0.66]
[1764248127799,10.45358408,141.2,141.18,0.66]
[1764248127996,3.37143111,141.19,141.17,24.7679]
[1764248128202,13.59458736,141.18,141.17,25.4279]
[1764248130331,13.59458736,141.18,141.17,24.7679]
[1764248134236,14.25458736,141.18,141.17,24.7679]
[1764248134816,10.45458736,141.18,141.17,24.7679]
[1764248135022,13.59458736,141.18,141.17,24.7679]
[1764248135836,10.45458736,141.18,141.17,24.7679]
[1764248136040,13.59458736,141.18,141.17,24.7679]
[1764248137939,14.25458736,141.18,141.17,24.7679]
[1764248138416,13.59458736,141.18,141.17,24.7679]
[1764248142522,31.96247799,141.18,141.15,0.66]
[1764248142724,3.37143111,141.16,141.14,0.72]
[1764248143028,1.54545725,141.17,141.11,88.48089383]
[1764248143029,6.51143111,141.15,141.11,72.17202983]
[1764248143236,3.37143111,141.13,141.11,72.89202983]
[1764248143438,3.14,141.12,141.11,72.89202983]
[1764248143825,6.51143111,141.12,141.11,72.89202983]
[1764248144028,13.59759891,141.12,141.11,72.17202983]
[1764248144229,13.59759891,141.12,141.11,72.89202983]